Cogmind - Beta 13 @@@ ROGUE MODE // 2024.04.24 @ 13:04:14 Player: Modulottie Result: Destroyed by D-53 Grenadier with Mini Grenade Launcher Performance ------------- Evolutions (1) 500 Regions Visited (4) 800 Robots Destroyed (18) 90 Value Destroyed (473) 473 Prototype IDs (1) 20 Alien Tech Used (0) 0 Bonus (200) 200 TOTAL SCORE: 2083 Bonus ------- Pacifist 200 Cogmind --------- Core Integrity 0/400 Matter 218/300 Energy 273/280 System Corruption 15% Temperature Cool (0) Movement Rolling (145) Ox3 Location -9/Mines Parts ------- > --- POWER (1) -------- Heavy Ion Engine > --- PROPULSION (2) --- Compact Wheel > --- UTILITY (3) ------ High-capacity Storage Unit > --- WEAPON (3) ------- Improved Light Cannon > --- INVENTORY (20) --- Reinforced Ion Engine Heavy Ion Engine Small Storage Unit Medium Matter Pod (100) Sensor Array Light Armor Plating Hardened Light Armor Plating Hacking Suite Tractor Beam Improved Light Cannon Improved Light Cannon Improved Light Cannon Mini Grenade Launcher Maul Peak State ------------ > --- POWER ------------ Heavy Ion Engine > --- PROPULSION ------- Wheel Wheel > --- UTILITY ---------- High-capacity Storage Unit Structural Scanner Targeting Computer > --- WEAPON ----------- Assault Rifle Heavy Assault Rifle Improved Light Cannon > --- INVENTORY -------- Light Ion Engine Improved Ion Engine Reinforced Ion Engine Light Treads Light Treads Small Storage Unit Medium Matter Pod Light Armor Plating Hardened Light Armor Plating Hardened Light Armor Plating Hacking Suite Tractor Beam Small Laser Improved Light Cannon Improved Light Cannon Improved Light Cannon Mini Grenade Launcher Mini Grenade Launcher Mining Laser [Rating: 16] Favorites ----------- Power Ion Engine Engine Ion Engine Propulsion Wheel Leg Aluminum Leg Wheel Wheel Utility Structural Scanner Device Structural Scanner Storage High-capacity Storage Unit Processor Targeting Computer Protection Hardened Light Armor Plating Weapon Assault Rifle Energy Gun Small Laser Ballistic Gun Assault Rifle Ballistic Cannon Improved Light Cannon Launcher Mini Grenade Launcher Build | -11 -10 -10 -9 -9 ------- Run | Yrd Mat Min Mat Min Slots Evolved 2 | . . . 2 . Power . | . . . . . Propulsion . | . . . . . Utility 1 | . . . 1 . Weapon 1 | . . . 1 . Parts Attached 25 | 6 4 . 8 7 Power 3 | 1 . . 2 . Engine 3 | 1 . . 2 . Core . | . . . . . Reactor . | . . . . . Propulsion 9 | 2 2 . 2 3 Treads . | . . . . . Leg 2 | 2 . . . . Wheel 7 | . 2 . 2 3 Hover . | . . . . . Flight . | . . . . . Utility 5 | 1 2 . 1 1 Device 1 | . 1 . . . Storage 2 | 1 1 . . . Processor 1 | . . . 1 . Hackware . | . . . . . Protection 1 | . . . . 1 Artifact . | . . . . . Weapon 8 | 2 . . 3 3 Energy Gun 1 | 1 . . . . Energy Cannon . | . . . . . Ballistic Gun 4 | 1 . . 2 1 Ballistic Cannon 2 | . . . 1 1 Launcher 1 | . . . . 1 Special Weapon . | . . . . . Impact Weapon . | . . . . . Slashing Weapon . | . . . . . Piercing Weapon . | . . . . . Special Melee Weapon . | . . . . . Unidentified Prototypes 1 | . . . 1 . Parts Lost 10 | . . . . 10 Power . | . . . . . Propulsion 4 | . . . . 4 Utility 3 | . . . . 3 Weapon 3 | . . . . 3 Highest Loss Streak 8 | . . . . 8 To Critical Strikes 1 | . . . . 1 Average Slot Usage (%) 96 | . 98 100 96 94 Engine 11 | . 14 14 11 11 Leg 2 | . 14 . . . Wheel 20 | . 13 28 22 19 Device 11 | . 12 14 11 9 Storage 11 | . 14 14 11 11 Processor 7 | . . . 10 9 Energy Gun 5 | . 14 14 4 . Ballistic Gun 17 | . 14 14 17 19 Ballistic Cannon 7 | . . . 8 10 Naked Turns . | . . . . . Heaviest Build 58 | 13 49 49 58 58 Greatest Support 32 | 20 20 20 32 32 Greatest Overweight (x) 19 | 3 2 2 2 19 Average Overweight (x) 1 | . . 2 1 1 Largest Inventory Capacity 20 | 8 20 20 20 20 Average Capacity 18 | 7 13 20 20 20 Most Carried 20 | 6 8 8 20 20 Average Carried 14 | 3 7 8 15 19 Final Capacity 20 | 8 20 20 20 20 Final Carried 20 | 6 8 8 20 14 Class Distribution -------------------- 57% | Gunner 42% | Mutant Dominant Class ---------------- Mutant | -10/Materials Mutant | -10/Mines Gunner | -9/Materials Gunner | -9/Mines Resources | -11 -10 -10 -9 -9 ----------- Run | Yrd Mat Min Mat Min Matter Collected 759 | 219 46 . 364 130 Remotely . | . . . . . Salvage Created 594 | . . . 474 120 Parts 35 | . . . 29 6 Haulers Intercepted 1 | . . . 1 . Recyclers Shooed . | . . . . . Parts Field Recycled . | . . . . . Retrieved Matter . | . . . . . Parts Self-Destructed . | . . . . . Prevented . | . . . . . Kills | -11 -10 -10 -9 -9 ------- Run | Yrd Mat Min Mat Min Combat Hostiles Destroyed 32 | . . . 13 19 Guns 12 | . . . 9 3 Cannons 6 | . . . 4 2 AOE 14 | . . . . 14 Classes Destroyed 6 | . . . 5 1 Hauler 1 | . . . 1 . Swarmer 6 | . . . 4 2 Grunt 8 | . . . 6 2 Brawler 1 | . . . 1 . Sentry 2 | . . . 2 . Assembled 15 | . . . . 15 Best Kill Streak 15 | . . . 4 15 Combat Bots Only 15 | . . . 4 15 Max Kills in Single Turn 4 | . . . 2 4 Gunslinging . | . . . . . Exploded 4 | . . . . 4 Melee . | . . . . . Uniques/NPCs Destroyed . | . . . . . Combat | -11 -10 -10 -9 -9 -------- Run | Yrd Mat Min Mat Min Hostile Shots Fired 95 | . . . 31 64 Missed 30 | . . . 6 24 Damage Taken 1511 | . . 47 260 1204 Core 445 | . . . 50 395 Absorbed by Shields . | . . . . . Core Remaining (%) 100 | 100 . 100 . . Volleys Fired 38 | . . . 19 19 Largest 3 | . . . 3 3 Hottest 99 | . . . 99 82 Shots Fired 95 | . . . 57 38 Gun 58 | . . . 38 20 Cannon 32 | . . . 19 13 Launcher 5 | . . . . 5 Special . | . . . . . Kinetic 88 | . . . 55 33 Thermal 2 | . . . 2 . Explosive 5 | . . . . 5 Electromagnetic . | . . . . . Robot Hit Streak 17 | . . . 15 17 Robot Miss Streak 4 | . . . 4 3 Penetration Max . | . . . . . Secondary Targets . | . . . . . Shots Hit Robots 51 | . . . 32 19 Core Hits 50 | . . . 19 31 Critical Kills . | . . . . . Critical Parts Destroyed . | . . . . . Critical Strikes 1 | . . . 1 . Blast 1 | . . . 1 . Melee Attacks . | . . . . . Impact . | . . . . . Slashing . | . . . . . Piercing . | . . . . . Sneak Attacks . | . . . . . Combat Hostiles . | . . . . . Follow-up Attacks . | . . . . . Damage Inflicted 1745 | 8 . . 580 1157 Guns 542 | . . . 372 170 Cannons 331 | . . . 208 123 Explosions 864 | . . . . 864 Melee . | . . . . . Ramming 8 | 8 . . . . Kinetic 861 | . . . 568 293 Thermal 12 | . . . 12 . Explosive 864 | . . . . 864 Electromagnetic . | . . . . . Impact . | . . . . . Slashing . | . . . . . Piercing . | . . . . . Highest Corruption 15 | . . . . 15 Average Corruption 10 | . . . . 10 Corruption Purged . | . . . . . Corruption Blocked . | . . . . . Effects 2 | . . . . 2 Heat Flow Errors 1 | . . . . 1 Weapon Failures 1 | . . . . 1 Overload Shots . | . . . . . Overflow Damage 22 | . . . . 22 Projectiles . | . . . . . Explosions 22 | . . . . 22 Melee . | . . . . . Knockbacks 3 | . . . 1 2 Impact . | . . . . . Kinetic 3 | . . . 1 2 Secondary . | . . . . . Self-Inflicted Damage 119 | . . . . 119 Shots 3 | . . . . 3 Rammed . | . . . . . Targets Rammed 2 | 2 . . . . Kicked 2 | 2 . . . . Crushed . | . . . . . Highest Temperature 291 | . . . 83 291 Average Temperature 52 | . . . 34 75 Received Heat Transfer 147 | . . . 105 42 Siege Activations . | . . . . . Robots Corrupted . | . . . . . Combat Hostiles . | . . . . . Parts Fried . | . . . . . Impact Corruptions . | . . . . . Robots Melted . | . . . . . Combat Hostiles . | . . . . . Parts Melted . | . . . . . Heat Transferred 25 | . . . 25 . Parts Sabotaged . | . . . . . Parts Stolen . | . . . . . Parts Stripped . | . . . . . Power Chain Reactions . | . . . . . Alert | -11 -10 -10 -9 -9 ------- Run | Yrd Mat Min Mat Min Peak Influence 289 | . 59 22 289 190 Initial 79 | . . 22 8 79 Average 104 | . 15 22 118 165 Maximum Alert Level 1 | . . . 1 . Low Security (%) 92 | 100 100 100 82 100 Level 1 7 | . . . 17 . Level 2 . | . . . . . Level 3 . | . . . . . Level 4 . | . . . . . Level 5 . | . . . . . High Security . | . . . . . Max Security . | . . . . . Squads Dispatched 3 | . . . 3 . Investigation 2 | . . . 2 . Extermination . | . . . . . Reinforcement 1 | . . . 1 . Assault . | . . . . . Garrison . | . . . . . Intercept . | . . . . . Searches Triggered . | . . . . . Construction Impeded . | . . . . . Haulers Reinforced . | . . . . . Active Scanning Responses . | . . . . . Cargo Convoy Interrupts . | . . . . . Stealth | -11 -10 -10 -9 -9 --------- Run | Yrd Mat Min Mat Min Distress Signals 1 | . 1 . . . Communications Jammed . | . . . . . Distress Signals . | . . . . . Times Spotted 47 | . 1 . 20 26 Peak Tracking Total 15 | . 3 . 4 15 Tactical Retreats 2 | . 1 . . 1 Traps | -11 -10 -10 -9 -9 ------- Run | Yrd Mat Min Mat Min Traps Triggered 2 | . . 2 . . Indirectly . | . . . . . Trap Hack Attempts . | . . . . . Triggered . | . . . . . Disarmed . | . . . . . Reprogrammed . | . . . . . Reused 1 | . . . . 1 Traps Extracted . | . . . . . Installed 1 | . . . . 1 Triggered 1 | . . . . 1 Most Traps Carried 1 | . . . . 1 Machines | -11 -10 -10 -9 -9 ---------- Run | Yrd Mat Min Mat Min Machines Disabled . | . . . . . Max in Single Turn . | . . . . . Machines Repaired . | . . . . . Machines Dismantled . | . . . . . Machines Sabotaged . | . . . . . Overloaded Fab Kills . | . . . . . Hacking | -11 -10 -10 -9 -9 --------- Run | Yrd Mat Min Mat Min Machines Accessed 9 | . 3 1 5 . Terminals 7 | . 3 . 4 . Fabricators . | . . . . . Repair Stations . | . . . . . Recycling Units . | . . . . . Scanalyzers 1 | . . . 1 . Garrison Access . | . . . . . Total Hacks 38 | . 12 1 25 . Successful 22 | . 6 1 15 . Failed 16 | . 6 . 10 . Catastrophic 5 | . . . 5 . Database Lockouts . | . . . . . Manual 28 | . 12 . 16 . Terminals 28 | . 12 . 16 . Fabricators . | . . . . . Repair Stations . | . . . . . Recycling Units . | . . . . . Scanalyzers 9 | . . . 9 . Garrison Access . | . . . . . Terminal Hacks 6 | . 3 1 2 . Open Door 1 | . . 1 . . Zone Layout 5 | . 3 . 2 . Fabricator Hacks . | . . . . . Repair Station Hacks . | . . . . . Recycling Unit Hacks . | . . . . . Scanalyzer 9 | . . . 9 . Insert Component 4 | . . . 4 . Analyze 5 | . . . 5 . Garrison Access Hacks . | . . . . . Unauthorized Hacks 7 | . 3 . 4 . Terminals 7 | . 3 . 4 . Botnet 7 | . 3 . 4 . Fabricators . | . . . . . Repair Stations . | . . . . . Recycling Units . | . . . . . Scanalyzers . | . . . . . Garrison Access . | . . . . . Data Cores Recovered 1 | . . . 1 . Used 1 | . . . 1 . Hacking Detections 7 | . 3 . 4 . Full Trace Events 2 | . . . 2 . Feedback Events . | . . . . . Feedback Blocked . | . . . . . Robot Schematics Acquired . | . . . . . Robots Built . | . . . . . Authchips . | . . . . . Time . | . . . . . Total Robot Build Rating . | . . . . . Part Schematics Acquired 4 | . . . 4 . Parts Built . | . . . . . Authchips . | . . . . . Time . | . . . . . Total Part Build Rating . | . . . . . Parts Repaired . | . . . . . Time . | . . . . . Parts Recycled . | . . . . . Recycled Matter . | . . . . . Retrieved Matter . | . . . . . Retrieved Components . | . . . . . Parts Scanalyzed 4 | . . . 4 . Part Schematics Acquired 4 | . . . 4 . Parts Damaged . | . . . . . Bothacking | -11 -10 -10 -9 -9 ------------ Run | Yrd Mat Min Mat Min Used RIF Installer . | . . . . . Robots Hacked . | . . . . . Non-combat . | . . . . . Combat . | . . . . . Robot Hacks Applied . | . . . . . Relay Couplers Released . | . . . . . Fabnet Peak Effective % . | . . . . . Robots Rewired . | . . . . . Allies Hacked . | . . . . . Hacks Repelled . | . . . . . Allies | -11 -10 -10 -9 -9 -------- Run | Yrd Mat Min Mat Min Total Allies . | . . . . . Largest Group . | . . . . . Highest-Rated Group . | . . . . . Highest-Rated Ally . | . . . . . Total Orders . | . . . . . Ally Attacks . | . . . . . Total Damage . | . . . . . Kills . | . . . . . Allies Corrupted . | . . . . . Allies Melted . | . . . . . Intel | -11 -10 -10 -9 -9 ------- Run | Yrd Mat Min Mat Min Robot Analysis Total . | . . . . . Derelict Logs Recovered 3 | . . 1 . 2 Drone Launches . | . . . . . Drone Recoveries . | . . . . . Exploration | -11 -10 -10 -9 -9 ------------- Run | Yrd Mat Min Mat Min Turns Passed 1254 | 66 170 112 505 401 Spaces Moved 897 | 40 141 102 335 279 Core 11 | 10 . . . 1 Treads . | . . . . . Legs 102 | 30 72 . . . Wheels 784 | . 69 102 335 278 Hover . | . . . . . Flight . | . . . . . Fastest Speed 50 | 50 80 110 110 115 Average Speed 114 | 124 114 110 110 120 Slowest Speed 1000 | 200 120 110 120 1000 Overloaded Moves . | . . . . . Propulsion Burnouts . | . . . . . Robots Hopped . | . . . . . Cave-ins Triggered . | . . . . . Exploration Rate (%) 37 | 4 36 30 42 74 Regions Visited 4 Branch Regions 2 Pre-discovered Areas 2 | . . 1 . 1 Known Exits Taken . | . . . . . Unknown Exits Taken 4 | 1 1 1 1 . Scrap Searched 3 | . . . . 3 Spaces Dug . | . . . . . Terrain Destroyed 34 | . . . 3 31 Melee . | . . . . . Projectile 4 | . . . 3 1 AOE 30 | . . . . 30 Terrain Rammed . | . . . . . Walls Destroyed . | . . . . . Machines Disabled . | . . . . . Actions | -11 -10 -10 -9 -9 --------- Run | Yrd Mat Min Mat Min Total 1048 | 53 149 101 429 316 Wait 39 | . . . 37 2 Move 893 | 39 140 101 334 279 Hop . | . . . . . Pick Up 31 | 6 3 . 19 3 Fast Attach 10 | 6 1 . 3 . Attach 6 | . . . 1 5 Detach 1 | . . . 1 . Swap 9 | . 3 . 4 2 Drop 18 | . 2 . 11 5 Fire 38 | . . . 19 19 Melee . | . . . . . Ram . | . . . . . Kick 2 | 2 . . . . Crush . | . . . . . Escape Stasis . | . . . . . Rewire . | . . . . . Trap 1 | . . . . 1 Miscellaneous . | . . . . . Route ------- -11/Scrapyard -10/Materials -10/Mines -9/Materials -9/Mines History --------- Turn | Location | Event 33 | -11/Scrapyard | Discovered new exit (range 15) 67 | -11/Scrapyard | Entered Materials 187 | -10/Materials | Discovered new exit (range 6) 237 | -10/Materials | Entered Mines 280 | -10/Mines | Discovered new exit (range 8) 290 | -10/Mines | Learned location of Recycling (-8) 301 | -10/Mines | Build established: Mutant 331 | -10/Mines | Met a Derelict who couldn't figure out how to use a Trap Extractor 349 | -10/Mines | Entered Materials 349 | -9/Materials | Evolved 2 slots: Utility x1, Weapon x1 768 | -9/Materials | Build established: Gunner 849 | -9/Materials | Discovered new exit (range 5) 854 | -9/Materials | Entered Mines 863 | -9/Mines | Learned Materials non-interactive machine intel 932 | -9/Mines | Learned location of Zion (-6) 1109 | -9/Mines | Found a hidden stash of uninstalled traps 1184 | -9/Mines | Assembled infested the area 1189 | -9/Mines | Assisted by a Guerilla fighting off Assembled 1216 | -9/Mines | Core integrity fell below 50% 1218 | -9/Mines | System corruption reached 10% 1227 | -9/Mines | Core integrity fell below 20% 1244 | -9/Mines | Destroyed 15 combat bots 1251 | -9/Mines | Lost 8 parts (3n2u3w) 1255 | -9/Mines | Destroyed by D-53 Grenadier with Mini Grenade Launcher Last Messages --------------- [Achievement: Exterminator] 01224_ The unstable cave ceiling collapses. 01224_ HV Slug penetrates D-53 Grenadier. 01224_ D-53 Grenadier suffers critical hit (Destroy). 01226_ HV Slug penetrates D-53 Grenadier. 01226_ D-53 Grenadier suffers critical hit (Destroy). 01226_ D-53 Grenadier knocked back. 01228_ D-53 Grenadier suffers critical hit (Destroy). 01229_ The unstable cave ceiling collapses. 01233_ D0-NIT(h) destroyed. 01233_ System corrupted: Imp. Light Cannon jammed. 01236_ System corrupted: Heat flow error (+283). 01237_ The unstable cave ceiling collapses. 01251_ Wheel destroyed. 01251_ Hrd. Light Armor Plating destroyed. [Achievement: Just Browsing] Map ----- +----------------------------------------------------+ | ##??????## ####### ## | | ###????#### ####### ## | | ####???###### ####?## ## | | ######### ######???## ## | | ## ####### ####????### ### | | ### " #### ##??????####### ### | | #### ###???????####### ###? | | ?#### ###????????????########? | | ??###### % ###???????????????#####?? | | ???#####" ##?????????????????????? | | ??????### #??????????????????????? | | ???????## ###????????????????????? | | ???????### % # ####?????????????????? | | ????????## #####????????????????? | | ????????## ####???????????????? | | ?????????# ###???????????????? | | ???????????# ##???????????????? | | ???????????# # ##???????????????? | | ??????????## ###???????????????? | | ?????????## ## ###???????????????? | | ?????????# d ##?????###????????? | | ?????????# ###### ##???????? | | ?????????## # ##??????? | | ??????????### ##?????? | | ????????????## < ##????? | | ????????????## @ = #??? | | ?????????????# =%! #?? | | ?????????????### ## #?? | | ???????????????# ##????? #?? | | ???????????????### ##??????????? | | ?????????????????#### ##???????????? | | ????????????????????### ###????????????? | | ??????????????????????####??????????????? | | ????????????????????????????????????????? | | ????????????????????????????????????????? | | ????????????????????????????????????????? | | ????????????????????????????????????????? | | ????????????????????????????????????????? | | | | | | | | | | | | | | | | | | | | | | | | | +----------------------------------------------------+ Best States ------------- Heat Dissipation 28 Energy Generation 14 Energy Capacity 280 Matter Stores 300 Matter Capacity 300 Sight Range 16 Terrain Scan Density 10 Armor Coverage 150 Evasion (%) 55 Targeting Accuracy 5 Item Schematics ----------------- Hrd. Light Armor Plating | -9/Materials | Scanalyzed Hacking Suite | -9/Materials | Scanalyzed Imp. Light Cannon | -9/Materials | Scanalyzed Imp. Ion Engine | -9/Materials | Scanalyzed Robot Schematics ------------------ None Fabricated ------------ Nothing Alien Tech Used ----------------- None Achievements -------------- Exterminator Just Browsing Challenges ------------ None Game ------ Seed LatentFortressChip Manual? 0 Play Time 00:19:43 Cumulative 19.6 hours Start 2024.04.24 @ 07:59:31 End 2024.04.24 @ 13:04:14 Sessions 3 Manual Loads 0 Difficulty Rogue Special Mode None Game No. 23 Rogue 23 Adventurer 0 Explorer 0 Win Type - Total 0 Types 0/0/0/0/0/0/0/0/0 Lore% 16 Gallery% 25 Achievement% 23 Wizard Run 0 Options --------- Layout 1 ASCII 0 Keyboard 0 Movement Numpad Keybinds 0 Fullscreen 1 Font 24/Terminus Map View 50x35 Zoom Use 0% Tactical HUD 1 Map Filters NONE Filters NONE Steam 1 RUN: 65f7a8f1-6c52-4735-a4fa-ea1a1b4aeb7e